Cogmind - Beta 11.1 @@@ ROGUE MODE // 2022.10.14 @ 14:16:47 Player: arcadio Result: Destroyed by D-53 Grenadier with Mini Grenade Launcher Performance ------------- Evolutions (0) 0 Regions Visited (4) 800 Robots Destroyed (35) 175 Value Destroyed (754) 754 Prototype IDs (2) 40 Alien Tech Used (0) 0 Bonus (-96) -96 TOTAL SCORE: 1673 Bonus ------- Follower Combat Kills 21 Friendly Fire -117 Cogmind --------- Core Integrity 0/250 Matter 193/300 Energy 82/125 System Corruption 0% Temperature Cool (0) Movement Rolling (80) Location -9/Mines Parts ------- > --- POWER (1) -------- Light Ion Engine > --- PROPULSION (2) --- Wheel Wheel > --- UTILITY (2) ------ Medium Storage Unit Makeshift Salvage Targeting Computer > --- WEAPON (2) ------- (None) > --- INVENTORY (10) --- Shotgun Mini Grenade Launcher Mini Grenade Launcher Peak State ------------ > --- POWER ------------ (None) > --- PROPULSION ------- Compact Wheel > --- UTILITY ---------- Medium Storage Unit Makeshift Salvage Targeting Computer > --- WEAPON ----------- YOLO Cannon > --- INVENTORY -------- Light Ion Engine Wheel Wheel Improved Medium Laser Makeshift Laser Shotgun Mini Grenade Launcher Mini Grenade Launcher [Rating: 27] Favorites ----------- Power Light Ion Engine Engine Light Ion Engine Power Core Light Nuclear Core Propulsion Wheel Leg Aluminum Leg Wheel Wheel Utility Medium Storage Unit Device ECM Suite Storage Medium Storage Unit Processor Signal Interpreter Weapon Assault Rifle Energy Gun Medium Laser Energy Cannon YOLO Cannon Ballistic Gun Assault Rifle Launcher Mini Grenade Launcher Build | -11 -10 -10 -10 -9 ------- Run | Scr Mat Min Exi Min Slots Evolved . | . . . . . Power . | . . . . . Propulsion . | . . . . . Utility . | . . . . . Weapon . | . . . . . Parts Attached 41 | 6 10 12 2 11 Power 5 | 1 . 2 . 2 Engine 4 | 1 . 1 . 2 Core 1 | . . 1 . . Reactor . | . . . . . Propulsion 9 | 2 3 2 . 2 Treads . | . . . . . Leg 2 | . 2 . . . Wheel 7 | 2 1 2 . 2 Hover . | . . . . . Flight . | . . . . . Utility 8 | 1 4 2 1 . Device 3 | . 1 2 . . Storage 3 | 1 2 . . . Processor 2 | . 1 . 1 . Hackware . | . . . . . Protection . | . . . . . Artifact . | . . . . . Weapon 19 | 2 3 6 1 7 Energy Gun 7 | . 1 3 1 2 Energy Cannon 2 | . . . . 2 Ballistic Gun 6 | 2 1 1 . 2 Ballistic Cannon . | . . . . . Launcher 4 | . 1 2 . 1 Special Weapon . | . . . . . Impact Weapon . | . . . . . Slashing Weapon . | . . . . . Piercing Weapon . | . . . . . Special Melee Weapon . | . . . . . Unidentified Prototypes 2 | . . . . 2 Parts Lost 16 | . 4 7 . 5 Power 3 | . . 2 . 1 Propulsion 6 | . 2 2 . 2 Utility 2 | . 1 1 . . Weapon 5 | . 1 2 . 2 Highest Loss Streak 5 | . 3 5 . 4 To Critical Strikes 1 | . . 1 . . Average Slot Usage (%) 97 | . 97 96 99 91 Engine 11 | . 14 7 14 11 Core 1 | . . 6 . . Leg 6 | . 2 17 . . Wheel 20 | . 24 9 28 24 Device 5 | . 1 13 4 . Storage 14 | . 14 14 14 14 Processor 7 | . 10 . 8 14 Energy Gun 12 | . 1 22 14 12 Ballistic Gun 14 | . 25 4 14 8 Naked Turns . | . . . . . Heaviest Build 31 | 13 20 20 19 31 Greatest Support 26 | 20 26 26 26 26 Greatest Overweight (x) 4 | . 1 4 . 4 Average Overweight (x) . | . . . . . Largest Inventory Capacity 25 | 8 25 10 10 10 Average Capacity 9 | 7 9 10 10 10 Most Carried 10 | 6 10 10 10 10 Average Carried 9 | 3 9 9 9 9 Final Capacity 10 | 8 10 10 10 10 Final Carried 10 | 6 8 8 10 3 Class Distribution -------------------- 70% | Mutant 17% | Commander-Mutant 12% | Scavenger-Mutant Dominant Class ---------------- Mutant | -10/Materials Mutant | -10/Mines Commander-Mutant | -10/Exiles Mutant | -9/Mines Resources | -11 -10 -10 -10 -9 ----------- Run | Scr Mat Min Exi Min Matter Collected 742 | 260 258 136 . 88 Remotely . | . . . . . Salvage Created 1033 | . 569 304 . 160 Parts 67 | . 30 25 . 12 Haulers Intercepted 2 | . 2 . . . Recyclers Shooed 1 | . 1 . . . Parts Field Recycled . | . . . . . Retrieved Matter . | . . . . . Parts Self-Destructed . | . . . . . Prevented . | . . . . . Kills | -11 -10 -10 -10 -9 ------- Run | Scr Mat Min Exi Min Combat Hostiles Destroyed 28 | . 11 11 . 6 Guns 18 | . 8 7 . 3 AOE 10 | . 3 4 . 3 Classes Destroyed 8 | . 3 3 . 2 Worker 3 | . . 3 . . Hauler 2 | . 2 . . . Recycler 1 | . . 1 . . Watcher 2 | . 2 . . . Swarmer 10 | . . 9 . 1 Grunt 16 | . 11 2 . 3 Duelist 1 | . . . . 1 Assembled 2 | . . . . 2 Best Kill Streak 5 | . 3 5 . 2 Combat Bots Only 3 | . 3 3 . 2 Max Kills in Single Turn 2 | . 2 2 . 1 Gunslinging . | . . . . . Exploded 2 | . 2 2 . 1 Melee . | . . . . . Uniques/NPCs Destroyed . | . . . . . Combat | -11 -10 -10 -10 -9 -------- Run | Scr Mat Min Exi Min Damage Taken 1685 | . 442 451 . 792 Core 254 | . 72 46 . 136 Absorbed by Shields . | . . . . . Core Remaining (%) 100 | 100 . . . . Volleys Fired 107 | . 46 41 . 20 Largest 2 | . 2 2 . 2 Hottest 106 | . 70 90 . 106 Shots Fired 184 | . 92 65 . 27 Gun 172 | . 89 63 . 20 Cannon 1 | . . . . 1 Launcher 11 | . 3 2 . 6 Special . | . . . . . Kinetic 90 | . 81 1 . 8 Thermal 83 | . 8 62 . 13 Explosive 11 | . 3 2 . 6 Electromagnetic . | . . . . . Robot Hit Streak 15 | . 10 7 . 15 Robot Miss Streak 8 | . 3 8 . 5 Penetration Max . | . . . . . Secondary Targets 1 | . . 1 . . Max Gunslinging Chain 1 | . . 1 . . Shots Hit Robots 115 | . 62 37 . 16 Core Hits 60 | . 29 17 . 14 Critical Kills . | . . . . . Critical Parts Destroyed . | . . . . . Critical Strikes 4 | . 1 2 . 1 Burn 4 | . 1 2 . 1 Melee Attacks . | . . . . . Impact . | . . . . . Slashing . | . . . . . Piercing . | . . . . . Sneak Attacks . | . . . . . Combat Hostiles . | . . . . . Follow-up Attacks . | . . . . . Damage Inflicted 2036 | . 887 669 . 480 Guns 1294 | . 646 428 . 220 Cannons . | . . . . . Explosions 713 | . 214 239 . 260 Melee . | . . . . . Ramming 29 | . 27 2 . . Kinetic 671 | . 583 6 . 82 Thermal 623 | . 63 422 . 138 Explosive 713 | . 214 239 . 260 Electromagnetic . | . . . . . Impact . | . . . . . Slashing . | . . . . . Piercing . | . . . . . Highest Corruption . | . . . . . Average Corruption . | . . . . . Corruption Purged . | . . . . . Corruption Blocked . | . . . . . Overload Shots . | . . . . . Overflow Damage 17 | . . 17 . . Projectiles . | . . . . . Explosions 17 | . . 17 . . Melee . | . . . . . Knockbacks . | . . . . . Impact . | . . . . . Kinetic . | . . . . . Secondary . | . . . . . Self-Inflicted Damage 86 | . 13 48 . 25 Shots 2 | . . 1 . 1 Rammed 3 | . 3 . . . Targets Rammed 4 | . 3 1 . . Kicked 1 | . . 1 . . Crushed . | . . . . . Highest Temperature 149 | . 149 76 . 54 Average Temperature 31 | . 34 33 . 23 Received Heat Transfer 341 | . 261 54 . 26 Siege Activations . | . . . . . Robots Corrupted . | . . . . . Combat Hostiles . | . . . . . Parts Fried . | . . . . . Impact Corruptions . | . . . . . Robots Melted 1 | . . 1 . . Combat Hostiles . | . . . . . Parts Melted 6 | . 1 5 . . Heat Transferred 1941 | . 259 1312 . 370 Parts Sabotaged . | . . . . . Parts Stolen . | . . . . . Parts Stripped . | . . . . . Power Chain Reactions . | . . . . . Missiles Intercepted . | . . . . . Alert | -11 -10 -10 -10 -9 ------- Run | Scr Mat Min Exi Min Peak Influence 275 | . 240 275 . 269 Initial 60 | . . 60 . . Average 123 | . 126 124 . 137 Maximum Alert Level 1 | . 1 1 . 1 Low Security (%) 94 | 100 96 96 . 77 Level 1 5 | . 3 3 . 22 Level 2 . | . . . . . Level 3 . | . . . . . Level 4 . | . . . . . Level 5 . | . . . . . High Security . | . . . . . Max Security . | . . . . . Squads Dispatched 3 | . 3 . . . Investigation 2 | . 2 . . . Extermination . | . . . . . Reinforcement 1 | . 1 . . . Assault . | . . . . . Garrison . | . . . . . Intercept . | . . . . . Searches Triggered . | . . . . . Construction Impeded . | . . . . . Haulers Reinforced . | . . . . . Active Scanning Responses . | . . . . . Cargo Convoy Interrupts . | . . . . . Stealth | -11 -10 -10 -10 -9 --------- Run | Scr Mat Min Exi Min Distress Signals 1 | . . . . 1 Communications Jammed . | . . . . . Distress Signals . | . . . . . Times Spotted 49 | . 26 11 . 12 Peak Tracking Total 16 | . 3 3 . 16 Tactical Retreats 6 | . 3 . . 3 Traps | -11 -10 -10 -10 -9 ------- Run | Scr Mat Min Exi Min Traps Triggered 2 | . 2 . . . Indirectly . | . . . . . Trap Hack Attempts . | . . . . . Triggered . | . . . . . Disarmed . | . . . . . Reprogrammed . | . . . . . Reused 1 | . . . . 1 Traps Extracted . | . . . . . Installed 1 | . . . . 1 Triggered 1 | . . . . 1 Most Traps Carried 1 | . . . . 1 Machines | -11 -10 -10 -10 -9 ---------- Run | Scr Mat Min Exi Min Machines Disabled . | . . . . . Max in Single Turn . | . . . . . Machines Sabotaged . | . . . . . Garrisons Compromised . | . . . . . Overloaded Fab Kills . | . . . . . Hacking | -11 -10 -10 -10 -9 --------- Run | Scr Mat Min Exi Min Machines Accessed 5 | . 4 . 1 . Terminals 4 | . 4 . . . Fabricators . | . . . . . Repair Stations . | . . . . . Recycling Units . | . . . . . Scanalyzers . | . . . . . Garrison Access . | . . . . . Total Hacks 14 | . 13 . 1 . Successful 9 | . 8 . 1 . Failed 5 | . 5 . . . Catastrophic . | . . . . . Database Lockouts . | . . . . . Manual 14 | . 11 . 3 . Terminals 13 | . 13 . . . Fabricators . | . . . . . Repair Stations . | . . . . . Recycling Units . | . . . . . Scanalyzers . | . . . . . Garrison Access . | . . . . . Terminal Hacks 4 | . 3 . 1 . Record 1 | . . . 1 . Terminal Index 1 | . 1 . . . Locate Traps 1 | . 1 . . . Patrol Status 1 | . 1 . . . Fabricator Hacks . | . . . . . Repair Station Hacks . | . . . . . Recycling Unit Hacks . | . . . . . Scanalyzer . | . . . . . Garrison Access Hacks . | . . . . . Unauthorized Hacks 5 | . 5 . . . Terminals 5 | . 5 . . . Track 1 | . 1 . . . Botnet 3 | . 3 . . . Operators 1 | . 1 . . . Fabricators . | . . . . . Repair Stations . | . . . . . Recycling Units . | . . . . . Scanalyzers . | . . . . . Garrison Access . | . . . . . Data Cores Recovered . | . . . . . Used . | . . . . . Hacking Detections 4 | . 4 . . . Full Trace Events 1 | . 1 . . . Feedback Events . | . . . . . Feedback Blocked . | . . . . . Robot Schematics Acquired . | . . . . . Robots Built . | . . . . . Authchips . | . . . . . Time . | . . . . . Total Robot Build Rating . | . . . . . Part Schematics Acquired . | . . . . . Parts Built . | . . . . . Authchips . | . . . . . Time . | . . . . . Total Part Build Rating . | . . . . . Parts Repaired . | . . . . . Time . | . . . . . Parts Recycled . | . . . . . Recycled Matter . | . . . . . Retrieved Matter . | . . . . . Retrieved Components . | . . . . . Parts Scanalyzed . | . . . . . Part Schematics Acquired . | . . . . . Parts Damaged . | . . . . . Bothacking | -11 -10 -10 -10 -9 ------------ Run | Scr Mat Min Exi Min Used RIF Installer . | . . . . . Robots Hacked . | . . . . . Non-combat . | . . . . . Combat . | . . . . . Robot Hacks Applied . | . . . . . Relay Couplers Released . | . . . . . Fabnet Peak Effective % . | . . . . . Robots Rewired 4 | . . . 4 . Allies Hacked . | . . . . . Hacks Repelled . | . . . . . Allies | -11 -10 -10 -10 -9 -------- Run | Scr Mat Min Exi Min Total Allies 4 | . . . 4 . Largest Group 4 | . . . 4 3 Highest-Rated Group 45 | . . . 45 37 Highest-Rated Ally 21 | . . . 21 21 Total Orders . | . . . . . Ally Attacks 20 | . . . . 20 Total Damage 228 | . . . . 228 Kills 7 | . . . . 7 Allies Corrupted . | . . . . . Allies Melted . | . . . . . Intel | -11 -10 -10 -10 -9 ------- Run | Scr Mat Min Exi Min Robot Analysis Total . | . . . . . Derelict Logs Recovered 2 | . . 2 . . Drone Launches . | . . . . . Drone Recoveries . | . . . . . Exploration | -11 -10 -10 -10 -9 ------------- Run | Scr Mat Min Exi Min Turns Passed 2857 | 61 974 846 684 292 Spaces Moved 2450 | 60 791 643 731 225 Core 9 | 5 . 3 . 1 Treads . | . . . . . Legs 437 | . 81 356 . . Wheels 2004 | 55 710 284 731 224 Hover . | . . . . . Flight . | . . . . . Fastest Speed 50 | 50 80 90 90 80 Average Speed 93 | 77 86 107 90 92 Slowest Speed 250 | 80 120 250 90 250 Overloaded Moves . | . . . . . Propulsion Burnouts . | . . . . . Robots Hopped . | . . . . . Cave-ins Triggered . | . . . . . Exploration Rate (%) 62 | 3 80 99 90 40 Regions Visited 4 Branch Regions 3 Pre-discovered Areas 1 | . . 1 . . Known Exits Taken 1 | . 1 . . . Unknown Exits Taken 3 | 1 . 1 1 . Scrap Searched 3 | . . 1 . 2 Spaces Dug 36 | . . . . 36 Terrain Destroyed 129 | . 24 15 . 90 Melee . | . . . . . Projectile 1 | . . . . 1 AOE 128 | . 24 15 . 89 Terrain Rammed . | . . . . . Walls Destroyed . | . . . . . Machines Disabled . | . . . . . Actions | -11 -10 -10 -10 -9 --------- Run | Scr Mat Min Exi Min Total 2845 | 71 998 735 758 283 Wait 163 | . 127 23 1 12 Move 2446 | 59 790 642 730 225 Hop . | . . . . . Pick Up 32 | 6 11 10 2 3 Fast Attach 17 | 6 4 3 2 2 Attach 15 | . 4 4 . 7 Detach 8 | . 3 . 2 3 Swap 9 | . 2 5 . 2 Drop 25 | . 8 6 3 8 Fire 107 | . 46 41 . 20 Melee . | . . . . . Ram 3 | . 3 . . . Kick 1 | . . 1 . . Crush . | . . . . . Escape Stasis . | . . . . . Rewire 18 | . . . 18 . Trap 1 | . . . . 1 Miscellaneous . | . . . . . Route ------- -11/Scrapyard -10/Materials (discovered 3 exits: *Mat x2 / *Min) -10/Mines (discovered 3 exits: *Mat x2 / *Exi) -10/Exiles -9/Mines History --------- Turn | Location | Event 3 | -11/Scrapyard | Discovered new exit (range 16) 62 | -11/Scrapyard | Entered Materials 274 | -10/Materials | Discovered new exit (range 14) 296 | -10/Materials | Identified exit to Mines 314 | -10/Materials | Build established: Mutant 472 | -10/Materials | Discovered new exit (range 16) 563 | -10/Materials | Discovered new exit (range 9) 582 | -10/Materials | Identified exit to Materials 949 | -10/Materials | Lost 3 parts (1n1u1w) 1036 | -10/Materials | Entered Mines 1116 | -10/Mines | Learned Materials terminal intel 1209 | -10/Mines | Met a Derelict bent on vengeance 1517 | -10/Mines | Build established: Scavenger-Mutant 1610 | -10/Mines | Lost 5 parts (1p2n1u1w) 1645 | -10/Mines | Discovered exit to Materials (range 9) 1653 | -10/Mines | Discovered exit to Materials (range 11) 1672 | -10/Mines | Learned location of Zion (-7) 1751 | -10/Mines | Deemed a non-threat by the Exiles lab entrance 1751 | -10/Mines | Discovered new exit (range 5) 1863 | -10/Mines | Build established: Mutant 1882 | -10/Mines | Entered Exiles 1882 | -10/Exiles | Found Exiles lab destroyed 2275 | -10/Exiles | Opened EX-Vault 2289 | -10/Exiles | Found Prototype Energy Cannon 2383 | -10/Exiles | Build established: Commander-Mutant 2538 | -10/Exiles | Discovered new exit (range 14) 2566 | -10/Exiles | Entered Mines 2566 | -9/Mines | Accompanied by 4 allies 2594 | -9/Mines | Found a hidden stash of uninstalled traps 2696 | -9/Mines | Assembled infested the area 2812 | -9/Mines | Identified YOLO Cannon 2818 | -9/Mines | Core integrity fell below 50% 2841 | -9/Mines | Core integrity fell below 20% 2853 | -9/Mines | Lost 4 parts (1p2n1w) 2858 | -9/Mines | Destroyed by D-53 Grenadier with Mini Grenade Launcher Last Messages --------------- 02801_ Acquired 6 matter. 02810_ The unstable cave ceiling collapses. 02811_ Dropped Mni. Grenade Launcher. 02812_ Identified YOLO Cannon. 02813_ The unstable cave ceiling collapses. 02813_ Identified Imp. Medium Laser. 02817_ Mak. Laser destroyed. 02820_ The unstable cave ceiling collapses. 02822_ Com. Wheel destroyed. 02824_ L-31 Rogue suffers critical hit (Burn). 02824_ Imp. Medium Laser severed. 02826_ L-31 Rogue heat damages Core Shielding, Imp. Ion Engine. 02829_ The unstable cave ceiling collapses. 02829_ L-31 Rogue destroyed. 02831_ Dropped YOLO Cannon. 02835_ Acquired YOLO Cannon. 02836_ Pulverizer disabled. 02839_ The unstable cave ceiling collapses. 02856_ YOLO Cannon destroyed. 02857_ The unstable cave ceiling collapses. Map ----- +----------------------------------------------------+ | ????????????????????## ## % ##??? | | ??????????????#####??## ## !! ##???? | | ???????????#### ##??# ## ###### ##????? | | ??????????## # ##?# ## #????# #?????? | | ????????### #?# ## #????## ##?????? | | ????????# % % #?# ## #?????# ##??????? | | ????????# # % * ## ## #?????# #???????? | | ?????????????# = # ## #?????# ########? | | ????????????## !=%! ##????# # #? | | ????????????# [%/ ###### # = #? | | ???????????# % & %* #? | | ??????????# ### # & %=#? | | ??????? =%= ####?# #####& ######## %* #? | | ???? ##????# #???####??????# *[=%=#? | | ???? ??????# #?????????????########? | | ??? ??????# #?????????????????????? | | ??? ??????# #######???????????????? | | ???? #??????# ## ##??????????????? | | ???? #???????# # #??????????????? | | ????? ????????# # ### #??????????????? | | ????? ?????????# # ##?????????????? | | ??????? ??????????## #?????????????? | | ?????????????????????# # #?????????????? | | ?????????????????##### #?????????????? | | ??????????????#### # #?????????????? | | ??????????????### @ ##????????????? | | ??????????????# # #????????????? | | ?????????????## #????????????? | | ?????????????# # #????????????? | | ?????????????# ##????????????? | | ????????????# #?????????????? | | ????????????## d #?????????????? | | ?????????????# #?????????????? | | ?????????????# ## ## ###?????????????? | | ?????????????# #??##?##???????????????? | | | | | | | | | | | | | | | | | | | | | | | | | | | | | | | +----------------------------------------------------+ Best States ------------- Heat Dissipation 39 Energy Generation 14 Energy Capacity 250 Matter Stores 300 Matter Capacity 300 Sight Range 16 Terrain Scan Density 10 ECM Strength 1 Evasion (%) 55 Salvage Targeting 4 Item Schematics ----------------- None Robot Schematics ------------------ None Fabricated ------------ Nothing Alien Tech Used ----------------- None Achievements -------------- None Challenges ------------ None Game ------ Seed VariableEnhancedAnalyzer Manual? 0 Play Time 00:39:08 Cumulative 45.5 hours Start 2022.10.14 @ 13:36:31 End 2022.10.14 @ 14:16:47 Sessions 1 Manual Loads 0 Difficulty Rogue Special Mode None Game No. 40 Rogue 40 Adventurer 0 Explorer 0 Win Type - Total 0 Types 0/0/0/0/0/0/0/0/0 Lore% 29 Gallery% 36 Achievement% 30 Wizard Run 0 Options --------- ASCII 0 Keyboard 1 Movement Numpad Keybinds 0 Fullscreen 2 Font 18/SmallcapsGlow Map View 76x50 Tactical HUD 1 Map Filters NONE Filters NONE Steam 1 RUN: a8e7f816-d8f8-4041-9414-f3f96849aa37